[Event "December 5 Late 2023"]
[Site "https://www.chess.com"]
[Date "2023.12.05"]
[Round "8"]
[White "Rasulov, Vugar"]
[Black "Nepomniachtchi, Ian"]
[Result "1/2-1/2"]
[Board "10"]
[TimeControl "180+1"]
[WhiteFideId "13402390"]
[BlackFideId "4168119"]
[WhiteElo "2911"]
[BlackElo "3100"]
[WhiteTeam "AZE"]
[BlackTeam "RUS"]
[WhiteClock "0:00:14"]
[BlackClock "0:00:58"]

1. e4 {[%clk 0:03:00]}  e5 {[%clk 0:02:57]} 2. Nf3 {[%clk 0:03:01]}  Nc6 {[%clk 0:02:57]} 3. Nc3 {[%clk 0:03:00]}  Nf6 {[%clk 0:02:55]} 4. d4 {[%clk 0:03:01]}  exd4 {[%clk 0:02:56]} 5. Nxd4 {[%clk 0:03:01]}  Bb4 {[%clk 0:02:56]} 6. Nxc6 {[%clk 0:03:02]}  bxc6 {[%clk 0:02:57]} 7. Bd3 {[%clk 0:03:02]}  O-O {[%clk 0:02:57]} 8. O-O {[%clk 0:03:01]}  d6 {[%clk 0:02:57]} 9. Bg5 {[%clk 0:02:59]}  h6 {[%clk 0:02:57]} 10. Bh4 {[%clk 0:02:58]}  Rb8 {[%clk 0:02:54]} 11. f4 {[%clk 0:02:49]}  Qe7 {[%clk 0:02:52]} 12. Kh1 {[%clk 0:02:44]}  Qe6 {[%clk 0:02:51]} 13. Qf3 {[%clk 0:02:38]}  Qg4 {[%clk 0:02:32]} 14. Bxf6 {[%clk 0:02:36]}  Qxf3 {[%clk 0:02:32]} 15. Rxf3 {[%clk 0:02:33]}  gxf6 {[%clk 0:02:32]} 16. Ne2 {[%clk 0:02:31]}  Re8 {[%clk 0:02:30]} 17. b3 {[%clk 0:02:22]}  Bc5 {[%clk 0:02:24]} 18. Ng3 {[%clk 0:02:17]}  Bg4 {[%clk 0:02:21]} 19. Rff1 {[%clk 0:02:16]}  h5 {[%clk 0:01:59]} 20. Rae1 {[%clk 0:01:27]}  h4 {[%clk 0:01:56]} 21. Nf5 {[%clk 0:01:25]}  Bxf5 {[%clk 0:01:52]} 22. exf5 {[%clk 0:01:26]}  a5 {[%clk 0:01:38]} 23. Re2 {[%clk 0:01:05]}  Rxe2 {[%clk 0:01:35]} 24. Bxe2 {[%clk 0:01:06]}  Re8 {[%clk 0:01:36]} 25. Bf3 {[%clk 0:01:07]}  d5 {[%clk 0:01:34]} 26. c4 {[%clk 0:00:50]}  d4 {[%clk 0:01:32]} 27. Rd1 {[%clk 0:00:40]}  d3 {[%clk 0:01:31]} 28. h3 {[%clk 0:00:25]}  d2 {[%clk 0:01:21]} 29. g4 {[%clk 0:00:20]}  hxg3 {[%clk 0:01:21]} 30. Kg2 {[%clk 0:00:19]}  Re1 {[%clk 0:01:13]} 31. Kxg3 {[%clk 0:00:17]}  Be3 {[%clk 0:01:13]} 32. h4 {[%clk 0:00:13]}  Kf8 {[%clk 0:01:04]} 33. h5 {[%clk 0:00:13]}  Kg7 {[%clk 0:01:05]} 34. Bg4 {[%clk 0:00:13]}  Kf8 {[%clk 0:01:00]} 35. Bf3 {[%clk 0:00:13]}  Ke7 {[%clk 0:01:00]} 36. Bg4 {[%clk 0:00:14]}  Kf8 {[%clk 0:00:58]} 37. Bf3 {[%clk 0:00:14]} 1/2-1/2

[Event "December 5 Late 2023"]
[Site "https://www.chess.com"]
[Date "2023.12.05"]
[Round "8"]
[White "Bortnyk, Olexandr"]
[Black "Sattarov, Bobir"]
[Result "0-1"]
[Board "12"]
[TimeControl "180+1"]
[WhiteFideId "14120828"]
[BlackFideId "14203081"]
[WhiteElo "3080"]
[BlackElo "2751"]
[WhiteTeam "UKR"]
[BlackTeam "UZB"]
[WhiteClock "0:00:02"]
[BlackClock "0:00:10"]

1. e4 {[%clk 0:03:00]}  e5 {[%clk 0:02:59]} 2. Nf3 {[%clk 0:02:56]}  Nc6 {[%clk 0:02:59]} 3. Bb5 {[%clk 0:02:49]}  a6 {[%clk 0:02:59]} 4. Ba4 {[%clk 0:02:46]}  Bc5 {[%clk 0:02:58]} 5. Nc3 {[%clk 0:02:39]}  Nge7 {[%clk 0:02:57]} 6. Nd5 {[%clk 0:02:36]}  O-O {[%clk 0:02:55]} 7. c3 {[%clk 0:02:32]}  d6 {[%clk 0:02:53]} 8. d4 {[%clk 0:02:32]}  Ba7 {[%clk 0:02:48]} 9. Bg5 {[%clk 0:02:27]}  f6 {[%clk 0:02:48]} 10. Bb3 {[%clk 0:02:22]}  Kh8 {[%clk 0:02:47]} 11. Be3 {[%clk 0:02:22]}  exd4 {[%clk 0:02:24]} 12. Nxd4 {[%clk 0:02:16]}  Nxd4 {[%clk 0:02:13]} 13. cxd4 {[%clk 0:02:13]}  c6 {[%clk 0:02:02]} 14. Nc3 {[%clk 0:02:09]}  f5 {[%clk 0:02:00]} 15. Bg5 {[%clk 0:02:04]}  h6 {[%clk 0:01:55]} 16. Qh5 {[%clk 0:01:24]}  Qe8 {[%clk 0:01:33]} 17. Qxe8 {[%clk 0:01:24]}  Rxe8 {[%clk 0:01:34]} 18. Bf7 {[%clk 0:01:21]}  Rf8 {[%clk 0:01:34]} 19. Bxe7 {[%clk 0:01:21]}  Rxf7 {[%clk 0:01:34]} 20. Bxd6 {[%clk 0:01:22]}  Bxd4 {[%clk 0:01:30]} 21. e5 {[%clk 0:01:21]}  Be6 {[%clk 0:01:25]} 22. O-O {[%clk 0:01:21]}  f4 {[%clk 0:01:21]} 23. Rfd1 {[%clk 0:01:20]}  Bxc3 {[%clk 0:01:07]} 24. bxc3 {[%clk 0:01:21]}  g5 {[%clk 0:01:01]} 25. a4 {[%clk 0:01:19]}  b5 {[%clk 0:00:57]} 26. axb5 {[%clk 0:01:18]}  cxb5 {[%clk 0:00:57]} 27. Bb4 {[%clk 0:01:14]}  Rd7 {[%clk 0:00:52]} 28. Rxd7 {[%clk 0:01:07]}  Bxd7 {[%clk 0:00:53]} 29. Rd1 {[%clk 0:01:07]}  Bf5 {[%clk 0:00:43]} 30. h4 {[%clk 0:01:00]}  Kg7 {[%clk 0:00:40]} 31. hxg5 {[%clk 0:00:50]}  hxg5 {[%clk 0:00:41]} 32. Be7 {[%clk 0:00:50]}  g4 {[%clk 0:00:41]} 33. Rd4 {[%clk 0:00:49]}  f3 {[%clk 0:00:38]} 34. Rf4 {[%clk 0:00:43]}  Kg6 {[%clk 0:00:34]} 35. gxf3 {[%clk 0:00:43]}  gxf3 {[%clk 0:00:34]} 36. Rxf3 {[%clk 0:00:44]}  a5 {[%clk 0:00:35]} 37. e6 {[%clk 0:00:31]}  Re8 {[%clk 0:00:32]} 38. Rg3+ {[%clk 0:00:31]}  Kh7 {[%clk 0:00:31]} 39. Bc5 {[%clk 0:00:10]}  Rxe6 {[%clk 0:00:30]} 40. Rf3 {[%clk 0:00:11]}  Kg6 {[%clk 0:00:29]} 41. Rg3+ {[%clk 0:00:10]}  Kf7 {[%clk 0:00:28]} 42. Rf3 {[%clk 0:00:10]}  Kg6 {[%clk 0:00:28]} 43. Kf1 {[%clk 0:00:05]}  Rc6 {[%clk 0:00:27]} 44. Ba3 {[%clk 0:00:04]}  Rc4 {[%clk 0:00:26]} 45. Rg3+ {[%clk 0:00:03]}  Kf7 {[%clk 0:00:26]} 46. Ke2 {[%clk 0:00:03]}  Ra4 {[%clk 0:00:24]} 47. Bc5 {[%clk 0:00:03]}  Rc4 {[%clk 0:00:24]} 48. Bd6 {[%clk 0:00:03]}  Ke6 {[%clk 0:00:23]} 49. Bf8 {[%clk 0:00:03]}  Rc8 {[%clk 0:00:22]} 50. Ba3 {[%clk 0:00:03]}  Rc4 {[%clk 0:00:22]} 51. Kd2 {[%clk 0:00:04]}  Ra4 {[%clk 0:00:21]} 52. Bf8 {[%clk 0:00:03]}  Ra2+ {[%clk 0:00:21]} 53. Ke3 {[%clk 0:00:03]}  Rc2 {[%clk 0:00:20]} 54. Kd4 {[%clk 0:00:03]}  Rxf2 {[%clk 0:00:18]} 55. Re3+ {[%clk 0:00:03]}  Kf7 {[%clk 0:00:18]} 56. Ba3 {[%clk 0:00:02]}  Ra2 {[%clk 0:00:16]} 57. Be7 {[%clk 0:00:02]}  Be6 {[%clk 0:00:14]} 58. Bh4 {[%clk 0:00:03]}  Bc4 {[%clk 0:00:14]} 59. Kc5 {[%clk 0:00:02]}  a4 {[%clk 0:00:13]} 60. Rf3+ {[%clk 0:00:02]}  Kg6 {[%clk 0:00:13]} 61. Be7 {[%clk 0:00:03]}  a3 {[%clk 0:00:13]} 62. Kb6 {[%clk 0:00:02]}  Ra1 {[%clk 0:00:13]} 63. Rg3+ {[%clk 0:00:02]}  Kf5 {[%clk 0:00:13]} 64. Rf3+ {[%clk 0:00:02]}  Ke6 {[%clk 0:00:13]} 65. Re3+ {[%clk 0:00:02]}  Kf5 {[%clk 0:00:11]} 66. Bxa3 {[%clk 0:00:02]}  Rxa3 {[%clk 0:00:11]} 67. Kc5 {[%clk 0:00:03]}  Kf4 {[%clk 0:00:11]} 68. Kd4 {[%clk 0:00:03]}  Ra8 {[%clk 0:00:09]} 69. Re4+ {[%clk 0:00:04]}  Kf5 {[%clk 0:00:09]} 70. Re5+ {[%clk 0:00:04]}  Kf4 {[%clk 0:00:09]} 71. Re4+ {[%clk 0:00:04]}  Kf3 {[%clk 0:00:09]} 72. Re3+ {[%clk 0:00:04]}  Kf2 {[%clk 0:00:09]} 73. Re7 {[%clk 0:00:05]}  Rc8 {[%clk 0:00:08]} 74. Re5 {[%clk 0:00:04]}  Rd8+ {[%clk 0:00:08]} 75. Kc5 {[%clk 0:00:05]}  Rc8+ {[%clk 0:00:08]} 76. Kb4 {[%clk 0:00:05]}  Be2 {[%clk 0:00:08]} 77. Rf5+ {[%clk 0:00:05]}  Ke1 {[%clk 0:00:08]} 78. Re5 {[%clk 0:00:06]}  Kd2 {[%clk 0:00:08]} 79. Rd5+ {[%clk 0:00:06]}  Bd3 {[%clk 0:00:08]} 80. Rh5 {[%clk 0:00:04]}  Rc4+ {[%clk 0:00:07]} 81. Kb3 {[%clk 0:00:02]}  Rxc3+ {[%clk 0:00:06]} 82. Kb4 {[%clk 0:00:03]}  Rc4+ {[%clk 0:00:06]} 83. Kb3 {[%clk 0:00:03]}  Bc2+ {[%clk 0:00:06]} 84. Kb2 {[%clk 0:00:03]}  Rb4+ {[%clk 0:00:06]} 85. Ka3 {[%clk 0:00:04]}  Ra4+ {[%clk 0:00:06]} 86. Kb2 {[%clk 0:00:05]}  Rb4+ {[%clk 0:00:06]} 87. Ka3 {[%clk 0:00:05]}  Rb3+ {[%clk 0:00:06]} 88. Ka2 {[%clk 0:00:06]}  Re3 {[%clk 0:00:03]} 89. Rxb5 {[%clk 0:00:06]}  Kc1 {[%clk 0:00:02]} 90. Rh5 {[%clk 0:00:05]}  Re4 {[%clk 0:00:01]} 91. Rh1+ {[%clk 0:00:05]}  Kd2 {[%clk 0:00:02]} 92. Rh2+ {[%clk 0:00:05]}  Kc3 {[%clk 0:00:02]} 93. Rh3+ {[%clk 0:00:04]}  Bd3 {[%clk 0:00:02]} 94. Ka3 {[%clk 0:00:05]}  Re5 {[%clk 0:00:01]} 95. Rh4 {[%clk 0:00:05]}  Re3 {[%clk 0:00:01]} 96. Ka4 {[%clk 0:00:04]}  Re2 {[%clk 0:00:01]} 97. Ka5 {[%clk 0:00:05]}  Re1 {[%clk 0:00:02]} 98. Kb6 {[%clk 0:00:05]}  Ra1 {[%clk 0:00:02]} 99. Kc5 {[%clk 0:00:05]}  Ra6 {[%clk 0:00:03]} 100. Rf4 {[%clk 0:00:04]}  Ra5+ {[%clk 0:00:03]} 101. Kd6 {[%clk 0:00:04]}  Rb5 {[%clk 0:00:04]} 102. Ke6 {[%clk 0:00:04]}  Ra5 {[%clk 0:00:04]} 103. Kd6 {[%clk 0:00:05]}  Bc4 {[%clk 0:00:04]} 104. Kc6 {[%clk 0:00:05]}  Kb4 {[%clk 0:00:05]} 105. Kd6 {[%clk 0:00:05]}  Ra6+ {[%clk 0:00:05]} 106. Ke5 {[%clk 0:00:06]}  Re6+ {[%clk 0:00:06]} 107. Kf5 {[%clk 0:00:07]}  Re8 {[%clk 0:00:07]} 108. Kf6 {[%clk 0:00:07]}  Kc5 {[%clk 0:00:07]} 109. Rf5+ {[%clk 0:00:07]}  Kc6 {[%clk 0:00:07]} 110. Rf4 {[%clk 0:00:08]}  Bd5 {[%clk 0:00:07]} 111. Kf5 {[%clk 0:00:08]}  Kd6 {[%clk 0:00:08]} 112. Kf6 {[%clk 0:00:09]}  Rf8+ {[%clk 0:00:08]} 113. Kg5 {[%clk 0:00:09]}  Rg8+ {[%clk 0:00:09]} 114. Kf6 {[%clk 0:00:08]}  Rg1 {[%clk 0:00:10]} 115. Kf5 {[%clk 0:00:08]}  Re1 {[%clk 0:00:10]} 116. Kf6 {[%clk 0:00:09]}  Be6 {[%clk 0:00:11]} 117. Rd4+ {[%clk 0:00:09]}  Bd5 {[%clk 0:00:11]} 118. Rf4 {[%clk 0:00:10]}  Ra1 {[%clk 0:00:12]} 119. Kf5 {[%clk 0:00:09]}  Ra7 {[%clk 0:00:12]} 120. Kf6 {[%clk 0:00:09]}  Re7 {[%clk 0:00:12]} 121. Kf5 {[%clk 0:00:07]}  Re6 {[%clk 0:00:12]} 122. Rd4 {[%clk 0:00:06]}  Re8 {[%clk 0:00:11]} 123. Rf4 {[%clk 0:00:07]}  Kc5 {[%clk 0:00:11]} 124. Kf6 {[%clk 0:00:07]}  Be4 {[%clk 0:00:11]} 125. Kg5 {[%clk 0:00:06]}  Kd4 {[%clk 0:00:10]} 126. Kf6 {[%clk 0:00:04]}  Ra8 {[%clk 0:00:10]} 127. Rh4 {[%clk 0:00:03]}  Ra6+ {[%clk 0:00:10]} 128. Kg5 {[%clk 0:00:02]}  Ke5 {[%clk 0:00:10]} 129. Rh6 {[%clk 0:00:02]}  Ra8 {[%clk 0:00:10]} 130. Rh4 {[%clk 0:00:02]}  Rg8+ {[%clk 0:00:11]} 131. Kh6 {[%clk 0:00:03]}  Kf6 {[%clk 0:00:10]} 132. Kh5 {[%clk 0:00:02]}  Bf3+ {[%clk 0:00:09]} 133. Kh6 {[%clk 0:00:02]}  Rh8# {[%clk 0:00:10]} 0-1

[Event "December 5 Late 2023"]
[Site "https://www.chess.com"]
[Date "2023.12.05"]
[Round "8"]
[White "Korchmar, Vasiliy"]
[Black "Bluebaum, Matthias"]
[Result "0-1"]
[Board "13"]
[TimeControl "180+1"]
[WhiteFideId "24131750"]
[BlackFideId "24651516"]
[WhiteElo "2814"]
[BlackElo "3022"]
[WhiteTeam "RUS"]
[BlackTeam "GER"]
[WhiteClock "0:00:00"]
[BlackClock "0:00:55"]

1. e4 {[%clk 0:03:00]}  e6 {[%clk 0:03:00]} 2. d4 {[%clk 0:03:01]}  d5 {[%clk 0:03:00]} 3. e5 {[%clk 0:03:01]}  c5 {[%clk 0:03:01]} 4. c3 {[%clk 0:03:02]}  Nc6 {[%clk 0:03:02]} 5. Nf3 {[%clk 0:03:02]}  Nge7 {[%clk 0:03:03]} 6. Na3 {[%clk 0:02:58]}  Bd7 {[%clk 0:03:03]} 7. Nc2 {[%clk 0:02:55]}  Qa5 {[%clk 0:03:03]} 8. Bd2 {[%clk 0:02:47]}  Qb6 {[%clk 0:03:03]} 9. dxc5 {[%clk 0:02:25]}  Qc7 {[%clk 0:02:59]} 10. Be2 {[%clk 0:01:55]}  Ng6 {[%clk 0:02:59]} 11. b4 {[%clk 0:01:52]}  Ncxe5 {[%clk 0:02:59]} 12. Nfd4 {[%clk 0:01:46]}  Be7 {[%clk 0:02:56]} 13. O-O {[%clk 0:01:45]}  O-O {[%clk 0:02:56]} 14. f4 {[%clk 0:01:41]}  Nc4 {[%clk 0:02:56]} 15. Bxc4 {[%clk 0:01:37]}  dxc4 {[%clk 0:02:57]} 16. f5 {[%clk 0:01:23]}  exf5 {[%clk 0:02:54]} 17. Ne3 {[%clk 0:01:24]}  b6 {[%clk 0:02:35]} 18. Nd5 {[%clk 0:00:43]}  Qc8 {[%clk 0:02:03]} 19. cxb6 {[%clk 0:00:37]}  Bd8 {[%clk 0:01:58]} 20. bxa7 {[%clk 0:00:31]}  Rxa7 {[%clk 0:01:59]} 21. a4 {[%clk 0:00:24]}  Qa8 {[%clk 0:01:59]} 22. Ne3 {[%clk 0:00:20]}  Bxa4 {[%clk 0:01:58]} 23. Qe2 {[%clk 0:00:19]}  Re8 {[%clk 0:01:55]} 24. Qf2 {[%clk 0:00:18]}  f4 {[%clk 0:01:52]} 25. Nxc4 {[%clk 0:00:15]}  Bc7 {[%clk 0:01:47]} 26. b5 {[%clk 0:00:11]}  Bc2 {[%clk 0:01:35]} 27. Nxc2 {[%clk 0:00:08]}  Rxa1 {[%clk 0:01:27]} 28. Rxa1 {[%clk 0:00:09]}  Qd5 {[%clk 0:01:28]} 29. Qd4 {[%clk 0:00:08]}  Qxb5 {[%clk 0:01:28]} 30. Nd6 {[%clk 0:00:06]}  Bxd6 {[%clk 0:01:13]} 31. Qxd6 {[%clk 0:00:07]}  h6 {[%clk 0:01:14]} 32. Bxf4 {[%clk 0:00:07]}  Qf5 {[%clk 0:01:14]} 33. Nd4 {[%clk 0:00:03]}  Qxf4 {[%clk 0:01:15]} 34. Qxf4 {[%clk 0:00:04]}  Nxf4 {[%clk 0:01:16]} 35. Rc1 {[%clk 0:00:03]}  Rd8 {[%clk 0:01:15]} 36. Kf1 {[%clk 0:00:03]}  Nd5 {[%clk 0:01:15]} 37. Ke2 {[%clk 0:00:02]}  Rc8 {[%clk 0:01:11]} 38. Kd3 {[%clk 0:00:02]}  Nf4+ {[%clk 0:01:12]} 39. Ke4 {[%clk 0:00:02]}  Nxg2 {[%clk 0:01:12]} 40. Rg1 {[%clk 0:00:01]}  Nh4 {[%clk 0:01:12]} 41. Rc1 {[%clk 0:00:01]}  g5 {[%clk 0:01:10]} 42. c4 {[%clk 0:00:01]}  f5+ {[%clk 0:01:07]} 43. Kd5 {[%clk 0:00:01]}  Rd8+ {[%clk 0:01:02]} 44. Ke5 {[%clk 0:00:01]}  f4 {[%clk 0:00:56]} 45. Ne6 {[%clk 0:00:01]}  Re8 {[%clk 0:00:54]} 46. c5 {[%clk 0:00:00]}  Kf7 {[%clk 0:00:55]} 0-1

[Event "December 5 Late 2023"]
[Site "https://www.chess.com"]
[Date "2023.12.05"]
[Round "8"]
[White "Krzyzanowski, Marcin"]
[Black "Deac, Bogdan-Daniel"]
[Result "0-1"]
[Board "14"]
[TimeControl "180+1"]
[WhiteFideId "1132199"]
[BlackFideId "1226380"]
[WhiteElo "2744"]
[BlackElo "3004"]
[WhiteTeam "POL"]
[BlackTeam "ROU"]
[WhiteClock "0:00:02"]
[BlackClock "0:01:01"]

1. Nf3 {[%clk 0:03:00]}  d5 {[%clk 0:02:59]} 2. g3 {[%clk 0:03:01]}  Nd7 {[%clk 0:02:55]} 3. d4 {[%clk 0:02:59]}  Ngf6 {[%clk 0:02:55]} 4. Bg2 {[%clk 0:02:59]}  e6 {[%clk 0:02:56]} 5. O-O {[%clk 0:02:57]}  Be7 {[%clk 0:02:57]} 6. c4 {[%clk 0:02:55]}  O-O {[%clk 0:02:57]} 7. b3 {[%clk 0:02:52]}  dxc4 {[%clk 0:02:56]} 8. bxc4 {[%clk 0:02:53]}  c5 {[%clk 0:02:56]} 9. d5 {[%clk 0:02:51]}  Nb6 {[%clk 0:02:56]} 10. dxe6 {[%clk 0:02:17]}  Bxe6 {[%clk 0:02:54]} 11. Ne5 {[%clk 0:02:09]}  Qc7 {[%clk 0:02:41]} 12. Bf4 {[%clk 0:02:05]}  g5 {[%clk 0:02:37]} 13. Ng6 {[%clk 0:01:51]}  gxf4 {[%clk 0:02:35]} 14. Nxf8 {[%clk 0:01:52]}  Rxf8 {[%clk 0:02:34]} 15. Nc3 {[%clk 0:01:52]}  Nxc4 {[%clk 0:02:28]} 16. Qc2 {[%clk 0:01:47]}  fxg3 {[%clk 0:02:16]} 17. hxg3 {[%clk 0:01:47]}  b6 {[%clk 0:02:16]} 18. Rad1 {[%clk 0:01:46]}  Qe5 {[%clk 0:02:11]} 19. Ne4 {[%clk 0:01:37]}  Ng4 {[%clk 0:01:52]} 20. Bf3 {[%clk 0:01:06]}  Qh5 {[%clk 0:01:46]} 21. Bxg4 {[%clk 0:01:01]}  Qxg4 {[%clk 0:01:46]} 22. f3 {[%clk 0:00:38]}  Qg6 {[%clk 0:01:40]} 23. Kf2 {[%clk 0:00:38]}  Nd6 {[%clk 0:01:12]} 24. Rxd6 {[%clk 0:00:11]}  Bxd6 {[%clk 0:01:12]} 25. Qc3 {[%clk 0:00:08]}  Be7 {[%clk 0:01:10]} 26. Rh1 {[%clk 0:00:08]}  f5 {[%clk 0:01:10]} 27. Nd2 {[%clk 0:00:04]}  Bf6 {[%clk 0:01:10]} 28. Qd3 {[%clk 0:00:03]}  Rd8 {[%clk 0:01:09]} 29. Qc2 {[%clk 0:00:03]}  Bd4+ {[%clk 0:01:01]} 30. e3 {[%clk 0:00:04]}  Bxe3+ {[%clk 0:01:01]} 31. Kxe3 {[%clk 0:00:05]}  f4+ {[%clk 0:01:01]} 32. Kxf4 {[%clk 0:00:02]}  Qxc2 {[%clk 0:01:01]} 0-1

[Event "December 5 Late 2023"]
[Site "https://www.chess.com"]
[Date "2023.12.05"]
[Round "8"]
[White "Henriquez Villagra, Cristobal"]
[Black "Mendes Aaron Reeve"]
[Result "1-0"]
[Board "15"]
[TimeControl "180+1"]
[WhiteFideId "3409350"]
[BlackFideId "25954938"]
[WhiteElo "2998"]
[BlackElo "2652"]
[WhiteTeam "CHI"]
[BlackTeam "CAN"]
[WhiteClock "0:01:01"]
[BlackClock "0:00:12"]

1. g3 {[%clk 0:03:00]}  d5 {[%clk 0:02:59]} 2. Bg2 {[%clk 0:03:01]}  e5 {[%clk 0:02:59]} 3. d4 {[%clk 0:03:01]}  e4 {[%clk 0:02:59]} 4. c4 {[%clk 0:03:00]}  c6 {[%clk 0:02:59]} 5. Nc3 {[%clk 0:03:01]}  Nf6 {[%clk 0:02:57]} 6. f3 {[%clk 0:03:01]}  exf3 {[%clk 0:02:56]} 7. Nxf3 {[%clk 0:03:02]}  dxc4 {[%clk 0:02:56]} 8. O-O {[%clk 0:03:00]}  Bb4 {[%clk 0:02:55]} 9. e4 {[%clk 0:02:59]}  Bxc3 {[%clk 0:02:53]} 10. bxc3 {[%clk 0:03:00]}  O-O {[%clk 0:02:53]} 11. Bg5 {[%clk 0:02:52]}  h6 {[%clk 0:02:52]} 12. Bh4 {[%clk 0:02:52]}  Bg4 {[%clk 0:02:44]} 13. Qc1 {[%clk 0:02:44]}  Qa5 {[%clk 0:02:02]} 14. Bxf6 {[%clk 0:02:40]}  gxf6 {[%clk 0:02:01]} 15. Qxh6 {[%clk 0:02:10]}  Nd7 {[%clk 0:01:51]} 16. Qf4 {[%clk 0:02:01]}  Bxf3 {[%clk 0:01:50]} 17. Rxf3 {[%clk 0:02:02]}  Qg5 {[%clk 0:01:48]} 18. Qc7 {[%clk 0:02:02]}  Nb6 {[%clk 0:01:39]} 19. Raf1 {[%clk 0:02:00]}  Rab8 {[%clk 0:01:00]} 20. Rxf6 {[%clk 0:01:57]}  Na4 {[%clk 0:00:54]} 21. h4 {[%clk 0:01:35]}  Qe3+ {[%clk 0:00:36]} 22. Kh2 {[%clk 0:01:34]}  Nxc3 {[%clk 0:00:37]} 23. Rxf7 {[%clk 0:01:33]}  Qxd4 {[%clk 0:00:35]} 24. e5 {[%clk 0:01:29]}  Qg4 {[%clk 0:00:31]} 25. R1f4 {[%clk 0:01:21]}  Qg6 {[%clk 0:00:31]} 26. e6 {[%clk 0:01:13]}  Ne2 {[%clk 0:00:20]} 27. R4f6 {[%clk 0:00:59]}  Qxf6 {[%clk 0:00:15]} 28. Rxf6 {[%clk 0:00:58]}  Rxf6 {[%clk 0:00:16]} 29. Qxb8+ {[%clk 0:00:58]}  Kg7 {[%clk 0:00:17]} 30. e7 {[%clk 0:00:58]}  Re6 {[%clk 0:00:17]} 31. Qf8+ {[%clk 0:00:58]}  Kh7 {[%clk 0:00:16]} 32. Qf7+ {[%clk 0:00:58]}  Kh6 {[%clk 0:00:13]} 33. Qxe6+ {[%clk 0:00:59]}  Kh7 {[%clk 0:00:13]} 34. e8=Q {[%clk 0:00:59]}  Nf4 {[%clk 0:00:13]} 35. gxf4 {[%clk 0:01:00]}  c3 {[%clk 0:00:12]} 36. Q6g6# {[%clk 0:01:01]} 1-0

[Event "December 5 Late 2023"]
[Site "https://www.chess.com"]
[Date "2023.12.05"]
[Round "8"]
[White "Terry, Renato"]
[Black "Holt, Conrad"]
[Result "1-0"]
[Board "17"]
[TimeControl "180+1"]
[WhiteFideId "3803457"]
[BlackFideId "2034387"]
[WhiteElo "2978"]
[BlackElo "2812"]
[WhiteTeam "PER"]
[BlackTeam "USA"]
[WhiteClock "0:00:14"]
[BlackClock "0:00:00"]

1. Nf3 {[%clk 0:03:00]}  d5 {[%clk 0:02:59]} 2. e3 {[%clk 0:03:00]}  Bg4 {[%clk 0:02:59]} 3. c4 {[%clk 0:03:00]}  c6 {[%clk 0:02:57]} 4. cxd5 {[%clk 0:03:00]}  cxd5 {[%clk 0:02:51]} 5. Qa4+ {[%clk 0:02:59]}  Bd7 {[%clk 0:02:43]} 6. Qb3 {[%clk 0:02:59]}  Qc7 {[%clk 0:02:41]} 7. Nc3 {[%clk 0:02:57]}  e6 {[%clk 0:02:41]} 8. d4 {[%clk 0:02:52]}  Nc6 {[%clk 0:02:41]} 9. Bd2 {[%clk 0:02:52]}  Nf6 {[%clk 0:02:31]} 10. Bd3 {[%clk 0:02:48]}  Be7 {[%clk 0:02:27]} 11. O-O {[%clk 0:02:47]}  O-O {[%clk 0:02:27]} 12. Rac1 {[%clk 0:02:46]}  Rfc8 {[%clk 0:02:26]} 13. Na4 {[%clk 0:02:44]}  Ne4 {[%clk 0:02:14]} 14. Bxe4 {[%clk 0:02:18]}  dxe4 {[%clk 0:02:14]} 15. Ne5 {[%clk 0:02:18]}  Be8 {[%clk 0:02:09]} 16. f4 {[%clk 0:01:42]}  Qd8 {[%clk 0:01:51]} 17. Kh1 {[%clk 0:01:23]}  Qd5 {[%clk 0:00:56]} 18. Qxd5 {[%clk 0:01:16]}  exd5 {[%clk 0:00:55]} 19. Nc3 {[%clk 0:01:17]}  f6 {[%clk 0:00:44]} 20. Nxd5 {[%clk 0:01:03]}  Bf8 {[%clk 0:00:39]} 21. Nxc6 {[%clk 0:00:55]}  Bxc6 {[%clk 0:00:36]} 22. Nc3 {[%clk 0:00:54]}  Rd8 {[%clk 0:00:19]} 23. a3 {[%clk 0:00:49]}  Rac8 {[%clk 0:00:17]} 24. g4 {[%clk 0:00:45]}  Kf7 {[%clk 0:00:14]} 25. Kg1 {[%clk 0:00:44]}  Re8 {[%clk 0:00:09]} 26. Kf2 {[%clk 0:00:45]}  g6 {[%clk 0:00:07]} 27. h4 {[%clk 0:00:40]}  Bd7 {[%clk 0:00:07]} 28. Rg1 {[%clk 0:00:38]}  f5 {[%clk 0:00:07]} 29. g5 {[%clk 0:00:35]}  Ke6 {[%clk 0:00:06]} 30. h5 {[%clk 0:00:34]}  Be7 {[%clk 0:00:04]} 31. Rh1 {[%clk 0:00:34]}  Rg8 {[%clk 0:00:03]} 32. hxg6 {[%clk 0:00:28]}  hxg6 {[%clk 0:00:04]} 33. Rh6 {[%clk 0:00:28]}  Be8 {[%clk 0:00:03]} 34. Rh7 {[%clk 0:00:28]}  Bf8 {[%clk 0:00:02]} 35. Rxb7 {[%clk 0:00:22]}  Ra8 {[%clk 0:00:02]} 36. d5+ {[%clk 0:00:14]}  Kd6 {[%clk 0:00:02]} 37. Nb5+ {[%clk 0:00:13]}  Bxb5 {[%clk 0:00:00]} 38. Rxb5 {[%clk 0:00:14]} 1-0

[Event "December 5 Late 2023"]
[Site "https://www.chess.com"]
[Date "2023.12.05"]
[Round "8"]
[White "Alexandre, Anne Shopie Elizabeth"]
[Black "Cieslak, Patryk"]
[Result "0-1"]
[Board "23"]
[TimeControl "180+1"]
[WhiteFideId "11902418"]
[BlackFideId "21078882"]
[WhiteElo "2873"]
[BlackElo "2654"]
[WhiteTeam "HAI"]
[BlackTeam "POL"]
[WhiteClock "0:00:33"]
[BlackClock "0:00:37"]

1. e4 {[%clk 0:03:00]}  c5 {[%clk 0:03:00]} 2. Nf3 {[%clk 0:03:01]}  d6 {[%clk 0:03:00]} 3. d4 {[%clk 0:03:00]}  cxd4 {[%clk 0:03:01]} 4. Nxd4 {[%clk 0:03:01]}  Nf6 {[%clk 0:03:02]} 5. Nc3 {[%clk 0:03:01]}  Nc6 {[%clk 0:03:03]} 6. Bg5 {[%clk 0:03:01]}  e6 {[%clk 0:03:03]} 7. Qd2 {[%clk 0:03:01]}  a6 {[%clk 0:03:03]} 8. O-O-O {[%clk 0:03:01]}  Bd7 {[%clk 0:03:04]} 9. Kb1 {[%clk 0:03:01]}  Be7 {[%clk 0:03:01]} 10. f3 {[%clk 0:02:58]}  Nxd4 {[%clk 0:02:59]} 11. Qxd4 {[%clk 0:02:58]}  b5 {[%clk 0:03:00]} 12. Be3 {[%clk 0:02:56]}  Qc7 {[%clk 0:02:59]} 13. g4 {[%clk 0:02:56]}  O-O {[%clk 0:02:57]} 14. Qd2 {[%clk 0:02:45]}  Rfc8 {[%clk 0:02:56]} 15. g5 {[%clk 0:02:45]}  Ne8 {[%clk 0:02:47]} 16. h4 {[%clk 0:02:45]}  b4 {[%clk 0:02:47]} 17. Ne2 {[%clk 0:02:44]}  a5 {[%clk 0:02:46]} 18. Nd4 {[%clk 0:02:42]}  Qb7 {[%clk 0:02:45]} 19. h5 {[%clk 0:02:40]}  Nc7 {[%clk 0:02:45]} 20. g6 {[%clk 0:02:31]}  Nb5 {[%clk 0:02:44]} 21. Bxb5 {[%clk 0:02:30]}  Bxb5 {[%clk 0:02:44]} 22. h6 {[%clk 0:02:22]}  fxg6 {[%clk 0:02:44]} 23. Nxe6 {[%clk 0:02:15]}  Bc4 {[%clk 0:02:44]} 24. Nxg7 {[%clk 0:02:13]}  Bf6 {[%clk 0:02:37]} 25. Bd4 {[%clk 0:02:12]}  Bxd4 {[%clk 0:02:13]} 26. Qxd4 {[%clk 0:02:12]}  a4 {[%clk 0:02:10]} 27. Rc1 {[%clk 0:01:37]}  Qf7 {[%clk 0:01:44]} 28. b3 {[%clk 0:01:04]}  axb3 {[%clk 0:01:45]} 29. cxb3 {[%clk 0:01:04]}  Bxb3 {[%clk 0:01:45]} 30. Rxc8+ {[%clk 0:01:04]}  Rxc8 {[%clk 0:01:46]} 31. Rh2 {[%clk 0:01:01]}  Qc7 {[%clk 0:01:02]} 32. Qb2 {[%clk 0:00:55]}  Bc4 {[%clk 0:00:39]} 33. Rd2 {[%clk 0:00:46]}  Qc5 {[%clk 0:00:39]} 34. Qd4 {[%clk 0:00:33]}  Bd3+ {[%clk 0:00:37]} 0-1